fUSD/lending_fUSD_20251227
["ID","MTS","AMOUNT","RATE_DAILY","PERIOD"]
[399919326,1766873455937,-303.23252351,0.0003589,9]
[399919327,1766873455947,-500.0,0.0003589,9]
[399919328,1766873455956,-500.0,0.0003589,9]
[399919329,1766873455966,-237.28124088,0.0003589,9]
[399919330,1766873455976,-400.0,0.0003589,9]
[399919331,1766873455986,-500.0,0.0003589,9]
[399919332,1766873455996,-500.0,0.0003589,9]
[399919333,1766873456006,-500.0,0.0003589,9]
[399919334,1766873456015,-400.0,0.0003589,9]
[399919335,1766873456025,-535.06494421,0.0003589,9]
[399919336,1766873456034,-500.0,0.0003589,9]
[399919337,1766873456044,-500.0,0.0003589,9]
[399919338,1766873456054,-400.0,0.0003589,9]
[399919339,1766873456064,-400.0,0.0003589,9]
[399919340,1766873456074,-600.0,0.0003589,9]
[399919341,1766873456083,-150.0,0.00035954,7]
[399919342,1766873456093,-1000.0,0.00035986,7]
[399919343,1766873456102,-50000.0,0.00036,36]
[399919344,1766873456112,-50000.0,0.00036,46]
[399919345,1766873456122,-50000.0,0.00036,26]
[399919346,1766873456132,-69889.30810815,0.00036,2]
[399919347,1766873456316,-5030.99724046,0.00036,2]
[399919348,1766873456326,-1158.28,0.00036,2]
[399919349,1766873456335,-280.6,0.00036,14]
[399919350,1766873456344,-135884.56618275,0.00036,2]
[399919351,1766873456356,-659.15029771,0.00036,2]
[399919352,1766873456365,-328.71438772,0.00036,17]
[399919353,1766873456376,-673.28561228,0.00036,17]
[399919354,1766873456387,-151.678948,0.00036,31]
[399919355,1766873456396,-151.0,0.00036,14]
[399919356,1766873456405,-151.0,0.00036,2]
[399919357,1766873456416,-151.0,0.00036,2]
[399919358,1766873456424,-151.0,0.00036,31]
[399919359,1766873456434,-151.0,0.00036,31]
[399919360,1766873456444,-151.0,0.00036,31]
[399919361,1766873456453,-151.0,0.00036,31]
[399919362,1766873456462,-256.26621594,0.00036,31]
[399919363,1766873456474,-143.45118806,0.00036,31]
[399919364,1766873456485,-399.717404,0.00036,31]
[399919365,1766873456494,-399.717404,0.00036,31]
[399919366,1766873456504,-399.717412,0.00036,31]
[399919367,1766873456513,-151.0,0.00036,31]
[399919368,1766873456522,-150.0,0.00036019,7]
[399919369,1766873456531,-150.0,0.00036078,7]
[399919370,1766873456540,-150.0,0.00036084,7]
[399919371,1766873456550,-1000.0,0.00036097,7]
[399919372,1766873456559,-150.0,0.00036125,7]
[399919373,1766873456569,-1035.99755214,0.00036148,7]
[399919374,1766873456578,-500.0,0.00036164,14]
[399919375,1766873456587,-204.10023209,0.00036164,9]
[399919376,1766873456597,-400.0,0.00036164,9]
[399919377,1766873456606,-400.0,0.00036164,9]
[399919378,1766873456615,-299.54411114,0.00036164,9]
[399919379,1766873456624,-400.0,0.00036164,9]
[399919380,1766873456633,-400.0,0.00036164,9]
[399919381,1766873456643,-400.0,0.00036164,9]
[399919382,1766873456653,-205.725046,0.00036164,9]
[399919383,1766873456662,-400.0,0.00036164,9]
[399919384,1766873456671,-210.02142568,0.00036164,9]
[399919385,1766873456680,-324.65,0.00036164,9]
[399919386,1766873456689,-300.0,0.00036164,9]
[399919387,1766873456698,-300.0,0.00036164,9]
[399919388,1766873456708,-300.0,0.00036164,9]
[399919389,1766873456718,-401.81646368,0.00036164,9]
[399919390,1766873456728,-341.93,0.00036164,9]
[399919391,1766873456737,-400.0,0.00036164,9]
[399919392,1766873456746,-400.0,0.00036164,9]
[399919393,1766873456756,-200.0,0.00036164,9]
[399919394,1766873456765,-222.93424786,0.00036164,9]
[399919395,1766873456775,-400.0,0.00036164,9]
[399919396,1766873456784,-306.21,0.00036164,9]
[399919397,1766873456794,-172.31633185,0.00036164,9]
[399919398,1766873456805,-127.68366815,0.00036164,9]
[399919399,1766873456815,-133.35533185,0.00036164,9]
[399919400,1766873456826,-293.04466815,0.00036164,9]
[399919401,1766873456835,-400.0,0.00036164,9]
[399919402,1766873456844,-400.0,0.00036164,9]
[399919403,1766873456854,-220.47,0.00036164,9]
[399919404,1766873456863,-400.0,0.00036164,9]
[399919405,1766873456875,-400.0,0.00036164,9]
[399919406,1766873456885,-176.43,0.00036164,9]
[399919407,1766873456894,-342.76,0.00036164,9]
[399919408,1766873456904,-400.0,0.00036164,9]
[399919409,1766873456915,-400.0,0.00036164,9]
[399919410,1766873456924,-448.26401351,0.00036164,9]
[399919411,1766873456933,-400.0,0.00036164,9]
[399919412,1766873456943,-334.10645596,0.00036164,9]
[399919413,1766873456953,-300.0,0.00036164,9]
[399919414,1766873456963,-400.0,0.00036164,9]
[399919415,1766873456972,-600.0,0.00036164,9]
[399919416,1766873456981,-400.0,0.00036164,9]
[399919417,1766873456991,-696.37,0.00036164,9]
[399919418,1766873457000,-500.0,0.00036164,9]
[399919419,1766873457009,-439.09000515,0.00036164,9]
[399919420,1766873457019,-300.0,0.00036164,9]
[399919421,1766873457028,-500.0,0.00036164,9]
[399919422,1766873457038,-500.0,0.00036164,9]
[399919423,1766873457047,-400.0,0.00036164,9]
[399919424,1766873457057,-500.0,0.00036164,9]
[399919425,1766873457067,-300.0,0.00036164,9]
[399919426,1766873457076,-400.0,0.00036164,9]
[399919427,1766873457086,-400.0,0.00036164,9]
[399919428,1766873457095,-300.0,0.00036164,9]
[399919429,1766873457105,-200.0,0.00036164,9]
[399919430,1766873457114,-447.28395637,0.00036164,9]
[399919431,1766873457123,-300.0,0.00036164,9]
[399919432,1766873457132,-300.0,0.00036164,9]
[399919433,1766873457142,-400.0,0.00036164,9]
[399919434,1766873457152,-172.2973042,0.00036164,9]
[399919435,1766873457162,-300.0,0.00036164,9]
[399919436,1766873457172,-500.0,0.00036164,9]
[399919437,1766873457183,-578.92022945,0.00036164,9]
[399919438,1766873457192,-300.0,0.00036164,9]
[399919439,1766873457202,-300.0,0.00036164,9]
[399919440,1766873457212,-300.0,0.00036164,9]
[399919441,1766873457221,-300.0,0.00036164,9]
[399919442,1766873457231,-500.0,0.00036164,9]
[399919443,1766873457241,-300.0,0.00036164,9]
[399919444,1766873457251,-400.0,0.00036164,9]
[399919445,1766873457262,-400.0,0.00036164,9]
[399919446,1766873457272,-500.0,0.00036164,9]
[399919447,1766873457282,-500.0,0.00036164,9]
[399919448,1766873457291,-500.0,0.00036164,9]
[399919449,1766873457301,-400.0,0.00036164,9]
[399919450,1766873457311,-150.0,0.00036166,7]
[399919451,1766873457320,-300.0,0.00036185,2]
[399919452,1766873457329,-150.0,0.00036192,7]
[399919453,1766873457339,-150.0,0.0003622,7]
[399919454,1766873457348,-150.0,0.00036262,7]
[399919455,1766873457357,-150.0,0.0003629,7]
[399919456,1766873457367,-1000.0,0.00036347,7]
[399919457,1766873457377,-1000.0,0.00036398,7]
[399919458,1766873457386,-1000.0,0.00036405,7]
[399919459,1766873457395,-150.0,0.0003642,7]
[399919460,1766873457405,-696.37,0.00036438,9]
[399919461,1766873457415,-631.41,0.00036438,9]
[399919462,1766873457424,-304.9556437,0.00036438,9]
[399919463,1766873457433,-264.0,0.00036438,9]
[399919464,1766873457443,-500.0,0.00036438,9]
[399919465,1766873457452,-500.0,0.00036438,9]
[399919466,1766873457461,-300.0,0.00036438,9]
[399919467,1766873457471,-500.0,0.00036438,9]
[399919468,1766873457480,-500.0,0.00036438,9]
[399919469,1766873457490,-150.0,0.00036536,7]
[399919470,1766873457550,-150.0,0.00036566,7]
[399919471,1766873457559,-150.0,0.00036589,7]
[399919472,1766873457568,-150.0,0.0003659,7]
[399919473,1766873457577,-150.0,0.000366,7]
[399919474,1766873457586,-150.0,0.0003662,7]
[399919475,1766873457596,-300.0,0.00036659,2]
[399919476,1766873457605,-150.0,0.00036666,7]
[399919477,1766873457615,-696.37,0.00036712,9]
[399919478,1766873457624,-999.0,0.00036712,120]
[399919479,1766873457633,-500.0,0.00036712,9]
[399919480,1766873457642,-500.0,0.00036712,9]
[399919481,1766873457652,-500.0,0.00036712,9]
[399919482,1766873457661,-500.0,0.00036712,9]
[399919483,1766873457675,-150.0,0.00036718,7]
[399919484,1766873457684,-1000.0,0.00036724,7]
[399919485,1766873457694,-300.0,0.00036724,2]
[399919486,1766873457703,-150.0,0.00036767,7]
[399919487,1766873457713,-2000.0,0.00036801,3]
[399919488,1766873457722,-2000.0,0.00036801,3]
[399919489,1766873457732,-1000.0,0.00036829,7]
[399919490,1766873457741,-1000.0,0.00036836,7]
[399919491,1766873457751,-1000.0,0.00036871,7]
[399919492,1766873457760,-1099.0,0.00036878,5]
[399919493,1766873457769,-150.0,0.00036886,7]
[399919494,1766873457778,-6309.75357488,0.00036889,2]
[399919495,1766873457874,-150.0,0.00016699,2]
[399919496,1766873457883,-150.0,0.00016726,2]
[399919497,1766873457896,-200.0,0.00016754,2]
[399919498,1766873457905,-15212.88865388,0.00036889,2]
[399919499,1766873457914,-300.0,0.00036889,2]
[399919500,1766873457924,-200.0,0.000369,120]
[399919501,1766873457933,-150.0,0.00036965,7]
[399919502,1766873457942,-400.0,0.0003697,2]
[399919503,1766873457951,-500.0,0.00036986,14]
[399919504,1766873457960,-500.0,0.00036986,14]
[399919505,1766873457971,-696.37,0.00036986,9]
[399919506,1766873457979,-500.0,0.00036986,9]
[399919507,1766873457988,-176.82470017,0.00036986,9]
[399919508,1766873457998,-500.0,0.00036986,9]
[399919509,1766873458007,-500.0,0.00036986,9]
[399919510,1766873458017,-800.0,0.00036986,13]
[399919511,1766873458027,-227.00709792,0.00036986,13]
[399919512,1766873458036,-1002.198113,0.00036986,31]
[399919513,1766873458046,-1002.198113,0.00036986,31]
[399919514,1766873458055,-1002.198113,0.00036986,31]
[399919515,1766873458064,-1002.198113,0.00036986,31]
[399919516,1766873458074,-1002.198113,0.00036986,31]
[399919517,1766873458083,-1002.198113,0.00036986,31]
[399919518,1766873458093,-1002.198113,0.00036986,31]
[399919519,1766873458102,-1002.198113,0.00036986,31]
[399919520,1766873458112,-1002.198113,0.00036986,31]
[399919521,1766873458121,-1002.198113,0.00036986,31]
[399919522,1766873458131,-1002.198113,0.00036986,31]
[399919523,1766873458140,-1002.198113,0.00036986,31]
[399919524,1766873458150,-1002.198113,0.00036986,31]
[399919525,1766873458159,-1002.198113,0.00036986,31]
[399919526,1766873458169,-1002.198113,0.00036986,31]
[399919527,1766873458178,-1002.198113,0.00036986,31]
[399919528,1766873458187,-1002.198113,0.00036986,31]
[399919529,1766873458196,-1002.198113,0.00036986,31]
[399919530,1766873458205,-1002.198113,0.00036986,31]
[399919531,1766873458214,-1002.198118,0.00036986,31]
[399919532,1766873458223,-151.0,0.00036986,10]
[399919533,1766873458232,-151.0,0.00036986,10]
[399919534,1766873458242,-151.0,0.00036986,31]
[399919535,1766873458251,-256.265413,0.00036986,31]
[399919536,1766873458260,-1091.9819,0.00036986,31]
[399919537,1766873458270,-1091.9819,0.00036986,31]
[399919538,1766873458280,-1091.9819,0.00036986,31]
[399919539,1766873458289,-1091.9819,0.00036986,31]
[399919540,1766873458298,-1091.9819,0.00036986,31]
[399919541,1766873458308,-1091.9819,0.00036986,31]
[399919542,1766873458317,-1091.9819,0.00036986,31]
[399919543,1766873458326,-1091.9819,0.00036986,31]
[399919544,1766873458335,-1091.9819,0.00036986,31]
[399919545,1766873458344,-1091.9819,0.00036986,31]
[399919546,1766873458353,-1091.9819,0.00036986,31]
[399919547,1766873458363,-1091.9819,0.00036986,31]
[399919548,1766873458372,-1091.9819,0.00036986,31]
[399919549,1766873458381,-1091.9819,0.00036986,31]
[399919550,1766873458391,-1091.9819,0.00036986,31]
[399919551,1766873458400,-1091.9819,0.00036986,31]
[399919552,1766873458409,-1091.9819,0.00036986,31]
[399919553,1766873458419,-1091.9819,0.00036986,31]
[399919554,1766873458428,-1091.9819,0.00036986,31]
[399919555,1766873458437,-1091.981901,0.00036986,31]
[399919556,1766873458446,-151.0,0.00036986,31]
[399919557,1766873458455,-151.0,0.00036986,31]
[399919558,1766873458465,-151.0,0.00036986,31]
[399919559,1766873458474,-151.0,0.00036986,31]
[399919560,1766873458483,-151.0,0.00036986,31]
[399919561,1766873458492,-151.0,0.00036986,31]
[399919562,1766873458502,-151.0,0.00036986,31]
[399919563,1766873458511,-151.0,0.00036986,31]
[399919564,1766873458519,-198.173782,0.00036986,31]
[399919565,1766873458528,-151.0,0.00036986,31]
[399919566,1766873458537,-151.0,0.00036986,31]
[399919567,1766873458547,-151.0,0.00036986,31]
[399919568,1766873458556,-151.0,0.00036986,31]
[399919569,1766873458567,-151.0,0.00036999,31]
[399919570,1766873458576,-151.0,0.00036999,31]
[399919571,1766873458585,-157.775104,0.00036999,31]
[399919572,1766873458594,-151.0,0.00036999,7]
[399919573,1766873458603,-151.0,0.00036999,7]
[399919574,1766873458612,-151.0,0.00036999,7]
[399919575,1766873458621,-151.0,0.00036999,31]
[399919576,1766873458630,-1000.0,0.00036999,37]
[399919577,1766873458639,-250.0,0.00036999,37]
[399919578,1766873458648,-250.0,0.00036999,37]
[399919579,1766873458657,-500.0,0.00036999,37]
[399919580,1766873458665,-151.0,0.00036999,37]
[399919581,1766873458675,-567.42402794,0.00036999,37]
[399919582,1766873458684,-553.64373807,0.00036999,37]
[399919583,1766873458693,-230.57805451,0.00036999,37]
[399919584,1766873458701,-222.53002668,0.00036999,37]
[399919585,1766873458710,-500.0,0.00036999,37]
[399919586,1766873458719,-500.0,0.00036999,37]
[399919587,1766873458728,-250.0,0.00036999,37]
[399919588,1766873458738,-1000.0,0.00036999,37]
[399919589,1766873458747,-500.0,0.00036999,37]
[399919590,1766873458757,-250.0,0.00036999,37]
[399919591,1766873458766,-50000.0,0.00037,47]
[399919592,1766873458774,-50000.0,0.00037,27]
[399919593,1766873458784,-50000.0,0.00037,37]
[399919594,1766873458793,-153.0,0.00037,120]
[399919595,1766873458802,-587.0,0.00037,60]
[399919596,1766873458812,-2000.0,0.00037,30]
[399919597,1766873458821,-151.0,0.00037034,5]
[399919598,1766873458830,-150.0,0.0003719,30]
[399919599,1766873458839,-466.24496057,0.0003719,30]
[399919600,1766873458847,-150.0,0.0003719,30]
[399919601,1766873458856,-560.71709745,0.0003719,30]
[399919602,1766873458866,-150.0,0.0003719,30]
[399919603,1766873458875,-3669.14872818,0.0003719,30]
[399919604,1766873458884,-289.31928977,0.0003719,30]
[399919605,1766873458898,-152.19476791,0.00037212,120]
[399919606,1766873458907,-696.37,0.0003726,9]
[399919607,1766873458916,-500.0,0.0003726,9]
[399919608,1766873458926,-500.0,0.0003726,9]
[399919609,1766873458936,-324.45779123,0.0003726,9]
[399919610,1766873458945,-1158.28,0.000374,2]
[399919611,1766873458954,-280.6,0.000374,14]
[399919612,1766873458964,-696.37,0.00037534,9]
[399919613,1766873458973,-500.0,0.00037534,9]
[399919614,1766873458983,-500.0,0.00037534,9]
[399919615,1766873458991,-85722.56765209,0.000377,3]
[399919616,1766873459004,-51282.3589901,0.000377,3]
[399919617,1766873459013,-151.0,0.000377,31]
[399919618,1766873459023,-151.0,0.000377,31]
[399919619,1766873459033,-234.231878,0.000377,31]
[399919620,1766873459042,-151.0,0.000377,31]
[399919621,1766873459051,-495.0,0.000378,120]
[399919622,1766873459060,-495.03,0.000378,120]
[399919623,1766873459070,-2294.04,0.000378,14]
[399919624,1766873459079,-500.0,0.00037808,14]
[399919625,1766873459088,-696.37,0.00037808,9]
[399919626,1766873459098,-999.0,0.00037808,120]
[399919627,1766873459107,-500.0,0.00037808,9]
[399919628,1766873459117,-500.0,0.00037808,9]
[399919629,1766873459127,-80386.0811706,0.0003788,2]
[399919630,1766873459136,-50000.0,0.00038,38]
[399919631,1766873459146,-50000.0,0.00038,48]
[399919632,1766873459155,-50000.0,0.00038,28]
[399919633,1766873459164,-250.0,0.00038,120]
[399919634,1766873459173,-4000.0,0.00038,2]
[399919635,1766873459183,-124910.75426776,0.00038,3]
[399919636,1766873459194,-2877.10776756,0.00038,3]
[399919637,1766873459205,-573.41328254,0.00038,3]
[399919638,1766873459216,-449.495,0.00038,3]
[399919639,1766873459227,-1428.3460252,0.00038,3]
[399919640,1766873459239,-393.75864082,0.00038,3]
[399919641,1766873459250,-290.80846488,0.00038,3]
[399919642,1766873459262,-401.780011,0.00038,3]
[399919643,1766873459272,-1872.04,0.00038,3]
[399919644,1766873459536,-150.0,0.00016699,2]
[399919645,1766873459546,-150.0,0.00016699,2]
[399919646,1766873459555,-200.0,0.00016699,2]
[399919647,1766873459564,-150.0,0.00016699,2]
[399919648,1766873459573,-150.0,0.00016699,2]
[399919649,1766873459583,-150.0,0.00016699,2]
[399919650,1766873459593,-166.66,0.00016704,2]
[399919651,1766873459602,-127.07843092,0.00016726,2]
[399919652,1766873459617,-22.92156908,0.00016726,2]
[399919653,1766873459627,-200.0,0.00016726,2]
[399919654,1766873459636,-150.0,0.00016726,2]
[399919655,1766873459645,-118.59940247,0.00016726,2]
[399919656,1766873459656,-31.40059753,0.00016726,2]
[399919657,1766873459666,-206.58520274,0.00016754,2]
[399919658,1766873459676,-200.0,0.00016754,2]
[399919659,1766873459686,-150.0,0.00016754,2]
[399919660,1766873459695,-150.0,0.00016781,2]
[399919661,1766873459704,-150.0,0.00016809,2]
[399919662,1766873459713,-250.0,0.00016836,2]
[399919663,1766873459722,-166.66,0.00017056,2]
[399919664,1766873459732,-166.66,0.00017408,2]
[399919665,1766873459741,-166.66,0.00017759,2]
[399919666,1766873459750,-166.66,0.00018111,2]
[399919667,1766873459759,-166.66,0.00018463,2]
[399919668,1766873459768,-576.965,0.0001883,2]
[399919669,1766873459777,-564.0,0.0002183,2]
[399919670,1766873459786,-1349.04638265,0.0003224,2]
[399919671,1766873459796,-240.0430877,0.00036729,2]
[399919672,1766873459805,-240.04308765,0.00037163,2]
[399919673,1766873459814,-240.04308765,0.00037597,2]
[399919674,1766873459823,-149757.18532077,0.00038,3]
[399919675,1766873459834,-23721.38823331,0.00038,3]
[399919676,1766873459853,-1349.04638265,0.0003557,2]
[399919677,1766873459862,-2739.98034386,0.00038,3]
[399919688,1766873919750,161.13,0.00012564,2]
[399919692,1766874120405,406.36,0.00026354,120]
[399919693,1766874120718,406.36,0.00029283,120]
[399919724,1766874631452,-240.82764263,0.00014272,2]
[399919725,1766874631463,-30.72227092,0.00014297,2]
[399919727,1766874631476,-269.27772908,0.00014297,2]
[399919729,1766874631486,-193.0,0.00014321,2]
[399919732,1766874631498,-300.0,0.00014342,2]
[399919733,1766874631508,-489.0995425,0.00014371,2]
[399919734,1766874631520,-710.9004575,0.00014371,2]
[399919735,1766874631530,-1200.0,0.00014372,2]
[399919736,1766874631540,-300.0,0.00014372,2]
[399919737,1766874631550,-300.0,0.00014372,2]
[399919738,1766874631559,-300.0,0.00014372,2]
[399919739,1766874631569,-500.0,0.00014373,2]
[399919740,1766874631579,-500.0,0.00014373,2]
[399919741,1766874631589,-162.74701435,0.00014921,2]
[399919742,1766874631601,-843.78731769,0.00014921,2]
[399919743,1766874631612,-502.76102603,0.00014921,2]
[399919744,1766874631622,-161.13,0.00015077,2]
[399919745,1766874631631,-490.82908113,0.00015139,2]
[399919746,1766874631644,-1009.17091887,0.00015139,2]
[399919747,1766874631653,-3149.45635009,0.00015556,2]
[399919748,1766874631768,-277.20013625,0.00015556,2]
[399919750,1766874631780,-1332.73001037,0.00015556,2]
[399919752,1766874631791,-529.3746,0.00015591,2]
[399919753,1766874631800,-797.14123849,0.00015591,2]
[399919758,1766874632038,-202.85876151,0.00015591,2]
[399919759,1766874632048,-193.0,0.00015699,2]
[399919760,1766874632064,-300.0,0.00015699,2]
[399919761,1766874632074,-420.0,0.00015739,2]
[399919762,1766874632084,-420.0,0.00015739,2]
[399919763,1766874632094,-157.0,0.00015739,2]
[399919764,1766874632104,-1680.0,0.00015808,2]
[399919765,1766874632115,-214.15037368,0.00015927,2]
[399919766,1766874632125,-9727.09062156,0.00015935,2]
[399919767,1766874632135,-937.1984653,0.00015942,2]
[399919768,1766874632145,-151.0,0.0001595,2]
[399919769,1766874632156,-151.0,0.0001595,2]
[399919770,1766874632166,-374.72817766,0.00015973,2]
[399919771,1766874632176,-201.79336227,0.00015973,2]
[399919772,1766874632186,-300.0,0.00015999,2]
[399919773,1766874632198,-172.63713413,0.00015999,2]
[399919774,1766874632211,-206876.72165314,0.00016,4]
[399919775,1766874632224,-60392.38923514,0.00016,4]
[399919776,1766874632235,-296.40886238,0.00016,4]
[399919777,1766874632247,-3207.69999999,0.00016,4]
[399919778,1766874632283,-1249.18479842,0.00016,4]
[399919779,1766874632312,-414.43605573,0.00015999,2]
[399919780,1766874632324,-1349.62964839,0.00016,4]
[399919781,1766874632337,-680.07227008,0.00016,4]
[399919787,1766874637606,-151.0,0.00015922,2]
[399919788,1766874637616,-151.0,0.00015922,2]
[399919789,1766874637626,-500.0,0.00015999,2]
[399919790,1766874637635,-500.0,0.00015999,2]
[399919791,1766874637645,-500.0,0.00015999,2]
[399919792,1766874637655,-500.0,0.00015999,2]
[399919793,1766874637665,-500.0,0.00015999,2]
[399919794,1766874637678,-191.16322205,0.00015999,2]
[399919795,1766874637688,-500.0,0.00015999,2]
[399919796,1766874637698,-618.07108086,0.00015999,2]
[399919797,1766874637708,-500.0,0.00015999,2]
[399919798,1766874637718,-1109720.7040068,0.00016,4]
[399919799,1766874637727,-9727.09062151,0.00016042,2]
[399919800,1766874637736,-9727.09062151,0.00016149,2]
[399919801,1766874637751,-9727.09062151,0.00016257,2]
[399919802,1766874637760,-9727.09062151,0.00016364,2]
[399919803,1766874637770,-9727.09062151,0.00016471,2]
[399919804,1766874637781,-9727.09062151,0.00016578,2]
[399919806,1766874637790,-9727.09062151,0.00016686,2]
[399919808,1766874637800,-9727.09062151,0.00016793,2]
[399919809,1766874637810,-22562.21467755,0.000168,2]
[399919810,1766874637821,-22562.2146775,0.00016811,2]
[399919811,1766874637831,-22562.2146775,0.00016822,2]
[399919812,1766874637841,-22562.2146775,0.00016833,2]
[399919813,1766874637851,-22562.2146775,0.00016844,2]
[399919814,1766874637861,-22562.2146775,0.00016856,2]
[399919815,1766874637875,-22562.2146775,0.00016867,2]
[399919816,1766874637884,-22562.2146775,0.00016878,2]
[399919817,1766874637894,-22562.2146775,0.00016889,2]
[399919819,1766874637905,-338.58723437,0.000169,2]
[399919821,1766874637915,-2177.1884665,0.000169,2]
[399919823,1766874637925,-9727.09062151,0.000169,2]
[399919824,1766874637935,-1617.59046341,0.000169,2]
[399919825,1766874637945,-22562.2146775,0.000169,2]
[399919826,1766874637955,-168.0,0.00016921,2]
[399919827,1766874637966,-150.0,0.00016973,2]
[399919828,1766874637976,-150.0,0.00016973,2]
[399919829,1766874637986,-416.44936262,0.00016976,2]
[399919830,1766874637997,-300.0,0.00016999,2]
[399919831,1766874638006,-670014.32440102,0.00017,2]
[399919832,1766874638019,-2833.53678,0.00017,2]
[399919833,1766874638031,-17779.38019671,0.00017,2]
[399919835,1766874639659,-5539.59083415,0.00017,2]
[399919836,1766874639674,-360.42425931,0.00017,2]
[399919837,1766874639718,-31771.12354827,0.00017,2]
[399919838,1766874639731,-1244.52080482,0.00017,2]
[399919839,1766874639743,-139863.70207803,0.00017,2]
[399919840,1766874639778,-879.81,0.00017,2]
[399919841,1766874639790,-344.4583708,0.00017,2]
[399919842,1766874639851,-852.46163084,0.00017,2]
[399919843,1766874639862,-500.0,0.00017,2]
[399919844,1766874639917,-1714.06444484,0.00017,2]
[399919845,1766874640033,-527285.12486563,0.00017,2]
[399920124,1766874645540,-1721.6,0.00017,2]
[399920125,1766874645607,-488.09639417,0.00017,2]
[399920126,1766874645837,-313.92849869,0.00017,2]
[399920201,1766874646648,-2207.96057256,0.00017,2]
[399920203,1766874646660,-1876.43942744,0.00017,2]
[399920869,1766875831769,-344.91,0.00013699,2]
[399920870,1766875831779,-300.0,0.00014388,2]
[399920871,1766875831789,-287.0,0.00014388,2]
[399920872,1766875831799,-1200.0,0.00014388,2]
[399920873,1766875831809,-195.0,0.00015068,2]
[399920875,1766875831819,-300.0,0.00015068,2]
[399920877,1766875831828,-250.0,0.00015068,2]
[399920879,1766875831838,-250.0,0.00015068,2]
[399920880,1766875831847,-300.0,0.00015068,2]
[399920882,1766875831857,-250.0,0.00015068,2]
[399920884,1766875831866,-300.0,0.00015287,2]
[399920886,1766875831876,-150.0,0.00015288,2]
[399920887,1766875831885,-150.0,0.00015288,2]
[399920889,1766875831895,-150.0,0.00015288,2]
[399920891,1766875831905,-150.0,0.00015288,2]
[399920893,1766875831914,-150.0,0.00015288,2]
[399920894,1766875831923,-150.0,0.00015288,2]
[399920896,1766875831933,-150.0,0.00015288,2]
[399920898,1766875831943,-150.0,0.00015288,2]
[399920899,1766875831956,-10.89675912,0.00015288,2]
[399920900,1766875832002,-139.10324088,0.00015288,2]
[399920901,1766875832011,-150.0,0.00015288,2]
[399920902,1766875832021,-150.0,0.00015288,2]
[399920903,1766875832031,-35.68075305,0.00015288,2]
[399920904,1766875832042,-114.31924695,0.00015288,2]
[399920905,1766875832051,-150.0,0.00015288,2]
[399920906,1766875832061,-391.77,0.00015288,2]
[399920907,1766875832071,-391.77,0.00015562,2]
[399920908,1766875832081,-150.0,0.00015712,2]
[399920909,1766875832096,-420.0,0.00015756,2]
[399920910,1766875832106,-4825.48,0.00015779,2]
[399920911,1766875832116,-1680.0,0.00015826,2]
[399920912,1766875832126,-391.77,0.00015836,2]
[399920913,1766875832136,-290.10523901,0.00016028,2]
[399920914,1766875832145,-258565.54339437,0.00016029,2]
[399920915,1766875832159,-2250.3303787,0.00016029,2]
[399920916,1766875832170,-81772.52606742,0.00016029,2]
[399920917,1766875832181,-231393.50238482,0.00016029,2]
[399920918,1766875832195,-1254.41808677,0.00016029,2]